lending/lending_fUSD_20241012
["ID","MTS","AMOUNT","RATE_DAILY","PERIOD"]
[340171058,1728751839525,-82746.0647237,0.00011,2]
[340171059,1728751839537,-40552.84986178,0.00011,2]
[340171060,1728751839632,-367.77499975,0.00011,2]
[340171141,1728751863247,207.30119918,0.00012,3]
[340171142,1728751875034,500.0,8.782e-05,2]
[340171143,1728751876934,500.0,8.782e-05,2]
[340171144,1728752039042,592.01,8.328e-05,2]
[340171145,1728752189589,173.52,0.00010157,2]
[340171146,1728752211867,550.0,0.0001,2]
[340171147,1728752264890,259.11,0.00010196,2]
[340171148,1728752287568,250.0,0.00010196,2]
[340171149,1728752367520,200.0,0.00010201,2]
[340171150,1728752380425,233.5,0.00021523,90]
[340171151,1728752424030,430.0,0.00021523,90]
[340171152,1728752450286,200.0,0.00010168,2]
[340171153,1728752543999,1697.42,0.00010145,2]
[340171154,1728752558470,602.39,8.298e-05,2]
[340171155,1728752730442,250.0,0.00010142,2]
[340171156,1728752767065,1191.68,0.00010233,2]
[340171169,1728752855249,250.0,0.0001021,2]
[340171170,1728752886722,154.89,0.0001016,2]
[340171176,1728752978761,1174.81,0.0001021,2]
[340171177,1728752986199,23900.0,0.00010234,2]
[340171184,1728753031669,-270.54903608,0.00010414,2]
[340171185,1728753031680,-326.324211,0.00010414,2]
[340171186,1728753031787,-403.12675292,0.00010414,2]
[340171187,1728753031797,-28.02360199,0.00010562,2]
[340171188,1728753031808,-488.72069977,0.00010562,2]
[340171189,1728753031846,-85.64569824,0.00010562,2]
[340171190,1728753031856,-168.7,0.00010714,2]
[340171191,1728753031866,-123.910394,0.00010758,2]
[340171192,1728753031879,-57.839606,0.00010758,2]
[340171193,1728753031889,-172.42632434,0.000109,2]
[340171194,1728753031898,-196.83952937,0.000109,2]
[340171195,1728753031908,-1000.0,0.000109,2]
[340171196,1728753031917,-1345.73785208,0.000109,2]
[340171197,1728753031929,-866.98701795,0.000109,2]
[340171198,1728753031938,-51.49967812,0.00010913,2]
[340171199,1728753031949,-394.46532188,0.00010913,2]
[340171200,1728753031959,-150.0,0.00010919,2]
[340171201,1728753031968,-77.30614744,0.00010959,2]
[340171202,1728753031979,-333.57385256,0.00010959,2]
[340171203,1728753031989,-168.782,0.00010959,2]
[340171204,1728753031998,-597.61658588,0.00010995,2]
[340171205,1728753032017,-279.91882872,0.00010995,2]
[340171206,1728753032026,-119.35236473,0.00010995,2]
[340171211,1728753038037,-30.64763527,0.00010995,2]
[340171212,1728753038047,-2269.4427394,0.00010995,2]
[340171213,1728753038056,-150.0,0.00010996,2]
[340171214,1728753038065,-151.102,0.00010996,2]
[340171215,1728753038074,-152.21,0.00010996,2]
[340171216,1728753038084,-168.843,0.00010996,2]
[340171217,1728753038093,-299.887,0.00010996,2]
[340171218,1728753038102,-171.029,0.00010996,2]
[340171219,1728753038113,-152.228,0.00010996,2]
[340171220,1728753038122,-192.581,0.00010996,2]
[340171221,1728753038131,-1244.0,0.00010996,2]
[340171222,1728753038141,-626.0,0.00010996,2]
[340171223,1728753038150,-812.0,0.00010996,2]
[340171224,1728753038159,-449.0,0.00010996,2]
[340171225,1728753038168,-560.0,0.00010996,2]
[340171226,1728753038178,-935.0,0.00010996,2]
[340171227,1728753038187,-500.0,0.00010999,2]
[340171228,1728753038196,-470.17701034,0.00010999,2]
[340171229,1728753038205,-500.0,0.00010999,2]
[340171230,1728753038215,-212522.7909239,0.00011,2]
[340171231,1728753038224,-4334.40053149,0.00011,2]
[340171232,1728753038239,-449864.1596,0.00011,2]
[340171233,1728753038321,-966.61632131,0.00011,2]
[340171234,1728753038332,-379.08166975,0.00011,2]
[340171235,1728753038344,-3613.98704601,0.00011,2]
[340171254,1728753039680,-1259.96086,0.00011,2]
[340171255,1728753039692,-3537.73874138,0.00011,2]
[340171256,1728753039709,-2847.770313,0.00011,2]
[340171257,1728753039721,-2025.26791969,0.00011,2]
[340171258,1728753039733,-500.0,0.00011,2]
[340171259,1728753039746,-379.9422459,0.00011,2]
[340171260,1728753039757,-288.1399292,0.00011,2]
[340171261,1728753039768,-572.70664969,0.00011,2]
[340171262,1728753039781,-3157.154,0.00011,2]
[340171263,1728753039793,-378.98644033,0.00011,2]
[340171264,1728753039804,-619.39818052,0.00011,2]
[340171265,1728753039819,-267.55,0.00011,2]
[340171266,1728753039831,-2128.58634117,0.00011,2]
[340171267,1728753039855,-92619.52537952,0.00011,2]
[340171268,1728753039868,-60549.54393348,0.00011,2]
[340171269,1728753039880,-4140.44248853,0.00011,2]
[340171270,1728753039891,-337.32070216,0.00011,2]
[340171271,1728753039903,-1427.75882695,0.00011,2]
[340171272,1728753039918,-650.0,0.00011,2]
[340171273,1728753039929,-1333.31807868,0.00011,2]
[340171274,1728753039940,-1087.46169813,0.00011,2]
[340171275,1728753039951,-1206.83348292,0.00011,2]
[340171276,1728753039962,-1275.2531778,0.00011,2]
[340171277,1728753039974,-1748.56626615,0.00011,2]
[340171278,1728753039986,-1467.8621135,0.00011,2]
[340171279,1728753039998,-1832.89551806,0.00011,2]
[340171280,1728753040010,-128183.37747169,0.00011,2]
[340171281,1728753040022,-2808.28785197,0.00011,2]
[340171282,1728753040034,-674.47609604,0.00011,2]
[340171291,1728753040166,-89099.0984953,0.00011,2]
[340171293,1728753040178,-730.55933782,0.00011,2]
[340171294,1728753040190,-495.55389865,0.00011,2]
[340171296,1728753040201,-42835.88502656,0.00011,2]
[340171298,1728753040212,-1131.59228596,0.00011,2]
[340171352,1728753042729,-695.84866301,0.00011,2]
[340171353,1728753042896,-269.95477448,0.00011,2]
[340171354,1728753042907,-326784.10732537,0.00011,2]
[340171355,1728753042951,-7156.919443,0.00011,2]
[340171356,1728753045815,-11805.10897059,0.00011,2]
[340171357,1728753045826,-944.75015225,0.00011,2]
[340171358,1728753045883,-797.46795498,0.00011,2]
[340171359,1728753045894,-2395.1,0.00011,2]
[340171362,1728753191757,621.78,8.384e-05,2]
[340171363,1728753288584,165.12,0.00010184,2]
[340171364,1728753288794,165.12,0.00010209,2]
[340171365,1728753289006,165.12,0.00010235,2]
[340171366,1728753291781,6951.85,0.00010209,2]
[340171367,1728753386192,250.0,0.00010181,2]
[340171368,1728753437428,212.96,0.00010181,2]
[340171369,1728753459272,2345.41,0.00010179,2]
[340171370,1728753476480,23674.86,0.00010179,2]
[340171371,1728753514399,700.0,0.00012,15]
[340171373,1728753615970,1000.0,0.00010084,2]
[340171374,1728753637107,329.16,0.00010081,2]
[340171375,1728753646392,200.0,0.0001008,2]
[340171377,1728753707288,455.52,0.00010091,2]
[340171378,1728753777059,-800.0,0.00010237,2]
[340171379,1728753777080,-207.0,0.0001053,2]
[340171380,1728753777099,-800.0,0.00010633,2]
[340171381,1728753777121,-621.78,0.00010648,2]
[340171382,1728753777141,-207.0,0.0001068,2]
[340171383,1728753777165,-5234.37300446,0.0001068,2]
[340171384,1728753777185,-207.0,0.0001082,2]
[340171385,1728753777207,-150.0,0.0001089,2]
[340171386,1728753777229,-150.91927,0.0001089,2]
[340171387,1728753777249,-150.0,0.00010899,2]
[340171388,1728753777269,-401.046,0.000109,2]
[340171389,1728753777290,-500.0,0.000109,2]
[340171390,1728753777311,-71387.1969,0.000109,2]
[340171391,1728753777331,-1000.0,0.000109,2]
[340171392,1728753777351,-1723.6356,0.000109,2]
[340171393,1728753777372,-1083.9308,0.000109,2]
[340171394,1728753777392,-1000.0,0.000109,2]
[340171395,1728753777412,-7500.0,0.000109,2]
[340171396,1728753777432,-1000.0,0.000109,2]
[340171397,1728753777453,-160.05,0.00010959,2]
[340171398,1728753777474,-634.3,0.00010959,2]
[340171399,1728753777493,-150.0,0.00010959,2]
[340171400,1728753777514,-8940.01,0.00010959,2]
[340171401,1728753777535,-826.89,0.00010959,2]
[340171402,1728753777554,-250.0,0.00010959,2]
[340171403,1728753777575,-164.485,0.00010959,2]
[340171404,1728753777597,-207.0,0.0001097,2]
[340171405,1728753777617,-500.0,0.00010973,2]
[340171406,1728753777638,-160.0,0.00010973,2]
[340171407,1728753777658,-500.0,0.00010973,2]
[340171408,1728753777677,-500.0,0.00010973,2]
[340171409,1728753777698,-160.83410492,0.00010973,2]
[340171410,1728753777718,-501.02205855,0.00010973,2]
[340171411,1728753777738,-428.5902686,0.00010995,2]
[340171412,1728753777758,-13599.8027469,0.00010995,2]
[340171413,1728753777778,-626.0,0.00010996,2]
[340171414,1728753777797,-449.0,0.00010996,2]
[340171415,1728753777817,-812.0,0.00010996,2]
[340171416,1728753777837,-1244.0,0.00010996,2]
[340171417,1728753777857,-935.0,0.00010996,2]
[340171418,1728753777877,-560.0,0.00010996,2]
[340171419,1728753777897,-150.0,0.00010996,2]
[340171420,1728753777918,-3009.404,0.00010996,2]
[340171421,1728753777938,-3973.345,0.00010996,2]
[340171422,1728753777960,-1083.0,0.00010996,2]
[340171423,1728753777981,-322.96693096,0.00010999,2]
[340171424,1728753778004,-195297.00076835,0.00011,2]
[340171425,1728753778026,-3356813.5937773,0.00011,2]
[340171426,1728753778046,-458432.57095884,0.00011,2]
[340171427,1728753778068,-1736319.70702462,0.00011,2]
[340171428,1728753778088,-104757.51920272,0.00011,2]
[340171429,1728753778110,-4530979.02658378,0.00011,2]
[340171430,1728753888429,250.0,0.00010216,2]
[340171431,1728753924713,275.0,0.00010084,2]
[340171432,1728753932199,500.0,0.00010084,2]
[340171433,1728753932372,6290.8541,0.00010137,2]
[340171434,1728753932548,781.0,0.00010084,2]
[340171435,1728753954796,4313.31332373,6.94e-05,2]
[340171436,1728753980839,640.33,8.293e-05,2]
[340171437,1728754020401,700.0,0.000102,3]
[340171438,1728754022506,1400.0,0.000103,3]
[340171439,1728754024738,2200.0,0.000104,3]
[340171440,1728754026858,2900.0,0.000105,3]
[340171441,1728754028959,3600.0,0.000106,3]
[340171442,1728754031065,700.0,0.000107,3]
[340171443,1728754033194,700.0,0.000108,3]
[340171444,1728754034146,254.66,0.00010148,2]
[340171445,1728754035339,700.0,0.000109,3]
[340171449,1728754045756,250.0,0.00010148,2]
[340171450,1728754074719,282.55,0.00010137,2]
[340171451,1728754136554,200.0,0.00010137,2]
[340171460,1728754158171,4269.22,0.00010133,2]
[340171467,1728754190264,173.52,0.00010162,2]
[340171475,1728754231850,-800.0,0.00010237,2]
[340171478,1728754231859,-334.51712849,0.00010347,2]
[340171480,1728754231868,-593.87906016,0.00010447,2]
[340171482,1728754231879,-547.16512457,0.00010447,2]
[340171483,1728754231889,-640.33,0.00010557,2]
[340171484,1728754231898,-196.24700209,0.00010619,2]
[340171486,1728754231909,-588.36553849,0.00010619,2]
[340171487,1728754231920,-15.38745942,0.00010619,2]
[340171488,1728754231929,-159.96,0.00010726,2]
[340171489,1728754231938,-281.67018964,0.000108,2]
[340171490,1728754231948,-834.36441036,0.000108,2]
[340171491,1728754231957,-150.0,0.000108,2]
[340171492,1728754231967,-150.0,0.000108,2]
[340171493,1728754231977,-1582.0,0.000108,2]
[340171494,1728754231986,-3712.4026,0.00010896,2]
[340171495,1728754231995,-300.0,0.00010899,2]
[340171496,1728754232004,-150.0,0.00010899,2]
[340171497,1728754232013,-156.58102148,0.00010899,2]
[340171498,1728754232022,-156.58102144,0.00010899,2]
[340171499,1728754232031,-5673.4177,0.000109,2]
[340171500,1728754232040,-1097.7394,0.000109,2]
[340171501,1728754232049,-59760.08163189,0.000109,2]
[340171502,1728754232064,-10100.90993565,0.000109,2]
[340171503,1728754232075,-883.28659609,0.000109,2]
[340171504,1728754232086,-1937.05373637,0.000109,2]
[340171505,1728754232095,-6852.10866935,0.000109,2]
[340171507,1728754232109,-1447.76092,0.000109,2]
[340171509,1728754232127,-1226.36048906,0.000109,2]
[340171510,1728754232138,-250.7502562,0.000109,2]
[340171511,1728754232148,-8309.57264441,0.000109,2]
[340171512,1728754232159,-278.4,0.000109,2]
[340171514,1728754232170,-1733.41,0.000109,2]
[340171516,1728754232185,-16174.60192098,0.000109,2]
[340171517,1728754232194,-1266.49505081,0.000109,2]
[340171518,1728754232202,-470.21277642,0.000109,2]
[340171519,1728754232211,-1210.607,0.000109,2]
[340171520,1728754232220,-13986.9383,0.000109,2]
[340171522,1728754232230,-150.99,0.000109,2]
[340171524,1728754232239,-150.0,0.000109,2]
[340171526,1728754232248,-1266.49505081,0.000109,2]
[340171528,1728754232257,-164.38861932,0.000109,2]
[340171530,1728754232266,-150.62,0.000109,2]
[340171531,1728754232275,-156.58102144,0.00010901,2]
[340171533,1728754232285,-156.58102144,0.00010904,2]
[340171535,1728754232294,-156.58102144,0.00010907,2]
[340171537,1728754232303,-500.0,0.00010912,2]
[340171539,1728754232313,-365.3,0.00010959,2]
[340171540,1728754232321,-185.98,0.00010959,2]
[340171542,1728754232331,-150.0,0.00010959,2]
[340171543,1728754232340,-939.47,0.00010959,2]
[340171544,1728754232349,-500.0,0.00010973,2]
[340171545,1728754232359,-500.0,0.00010973,2]
[340171546,1728754232368,-500.0,0.00010973,2]
[340171547,1728754232378,-500.0,0.00010973,2]
[340171548,1728754232391,-424.38888601,0.00010973,2]
[340171549,1728754232400,-1150.0,0.00010996,2]
[340171550,1728754232409,-150.0,0.00010996,2]
[340171551,1728754232418,-13526.0,0.00010996,2]
[340171552,1728754232429,-449.0,0.00010996,2]
[340171553,1728754232438,-248.1732614,0.00010997,2]
[340171554,1728754232447,-7604.0077121,0.00010997,2]
[340171555,1728754232459,-1049.8387597,0.00010997,2]
[340171556,1728754232468,-150.01,0.00010999,2]
[340171557,1728754232477,-1577.67468227,0.00010999,2]
[340171558,1728754232486,-500.0,0.00010999,2]
[340171559,1728754232496,-500.0,0.00010999,2]
[340171560,1728754232505,-500.0,0.00010999,2]
[340171561,1728754232514,-500.0,0.00010999,2]
[340171562,1728754232523,-500.0,0.00010999,2]
[340171563,1728754232532,-412.29313578,0.00010999,2]
[340171564,1728754232541,-500.0,0.00010999,2]
[340171565,1728754232550,-594.70767243,0.00010999,2]
[340171566,1728754232559,-577.0,0.00011,2]
[340171567,1728754232568,-175767.30069152,0.00011,2]
[340171568,1728754232577,-49978.84659206,0.00011,2]
[340171569,1728754232597,-406.46096392,0.00011,2]
[340171570,1728754232611,-692.97067594,0.00011,2]
[340171575,1728754238034,-12379.98318414,0.00010896,2]
[340171576,1728754238047,-5141.67052094,0.00010896,2]
[340171577,1728754238299,-39156.27109492,0.00010896,2]
[340171578,1728754238309,-156.58102144,0.00010909,2]
[340171579,1728754238319,-217.21,0.00010959,2]
[340171580,1728754238328,-1244.0,0.00010996,2]
[340171581,1728754238338,-289.83588561,0.00010999,2]
[340171582,1728754238348,-522.0,0.00011,2]
[340171583,1728754238358,-204898.14703667,0.00011,2]
[340171584,1728754238370,-1001.94317149,0.00011,2]
[340171585,1728754238382,-385.5010418,0.00011,2]
[340171589,1728754240161,-156.58102144,0.00010912,2]
[340171590,1728754240171,-626.0,0.00010996,2]
[340171591,1728754240180,-788.83734114,0.00010999,2]
[340171592,1728754240190,-4443.88163742,0.00011,2]
[340171593,1728754240275,-2431.27564932,0.00011,2]
[340171627,1728754242925,-5024.77761419,0.00011,2]
[340171631,1728754242986,-1127.02490741,0.00011,2]
[340171632,1728754242997,-300.0,0.00011,2]
[340171633,1728754243045,-537.8547275,0.00011,2]
[340171634,1728754243163,-174.95879954,0.00010973,2]
[340171635,1728754243173,-258.53273046,0.00011,2]
[340171647,1728754246001,-812.0,0.00010996,2]
[340171648,1728754246010,-31377.77327764,0.00011,2]
[340171649,1728754246021,-612.34305062,0.00011,2]
[340171650,1728754246032,-451.23409272,0.00011,2]
[340171651,1728754246062,-24891.03143423,0.00011,2]
[340171652,1728754246118,-6105.237942,0.00011,2]
[340171653,1728754246534,-0.3667753,0.00011,2]
[340171654,1728754246549,-906.30100541,0.00011,2]
[340171655,1728754246560,-1171.56040151,0.00011,2]
[340171656,1728754246570,-3008.4,0.00011,2]
[340171657,1728754316544,336.8029,0.00010137,2]
[340171658,1728754418076,250.0,0.00010234,2]
[340171659,1728754541714,254.66,0.00010131,2]
[340171660,1728754579480,11514.0,0.000125,5]
[340171661,1728754612125,152.0,0.00011581,3]
[340171662,1728754697473,154.89,0.00010098,2]
[340171663,1728754718468,840.0,0.00010081,2]
[340171664,1728754720040,500.0,0.00010081,2]
[340171665,1728754787642,654.61,8.219e-05,2]
[340171666,1728754930468,250.0,0.00010043,2]
[340171667,1728755159895,150.0,9.955e-05,2]
[340171668,1728755228511,328.0,0.00010057,2]
[340171672,1728755239425,150.0,9.955e-05,2]
[340171675,1728755277981,657.93,8.219e-05,2]
[340171688,1728755432079,-657.93,0.00010479,2]
[340171690,1728755432089,-164.65,0.00010587,2]
[340171692,1728755432101,-150.0,0.00010779,2]
[340171693,1728755432111,-9245.1333,0.0001078,2]
[340171695,1728755432122,-220.1512,0.0001078,2]
[340171697,1728755432133,-37942.3518,0.0001078,2]
[340171699,1728755432144,-1000.0,0.000108,2]
[340171701,1728755432154,-500.0,0.00010873,2]
[340171702,1728755432165,-242.21393067,0.00010873,2]
[340171704,1728755432175,-351825.67714456,0.0001088,2]
[340171706,1728755432187,-3410.50407077,0.0001088,2]
[340171708,1728755432200,-36465.3779063,0.0001088,2]
[340171709,1728755432222,-285.29701288,0.0001088,2]
[340171710,1728755432429,-575.10458265,0.0001088,2]
[340171711,1728755432441,-1557.23908,0.0001088,2]
[340171712,1728755435241,-229132.79347867,0.0001088,2]
[340171713,1728755435252,-20673.05827175,0.0001088,2]
[340171714,1728755435264,-471.55435349,0.0001088,2]
[340171716,1728755438125,-307.67134116,0.0001088,2]
[340171717,1728755438136,-300.32,0.0001088,2]
[340171721,1728755438347,-995.36520928,0.0001088,2]
[340171722,1728755438360,-353.01173433,0.0001088,2]
[340171723,1728755438371,-1293.93961488,0.0001088,2]
[340171724,1728755438382,-746.48651101,0.0001088,2]
[340171725,1728755438460,-408.0085986,0.0001088,2]
[340171726,1728755438471,-1076.7,0.0001088,2]
[340171727,1728755438482,-2022.54094756,0.0001088,2]
[340171728,1728755438493,-473.3383626,0.0001088,2]
[340171729,1728755438504,-673.22645406,0.0001088,2]
[340171737,1728755440075,-1754.65753902,0.0001088,2]
[340171738,1728755440134,-958.49316001,0.0001088,2]
[340171794,1728755443512,-81682.22163056,0.0001088,2]
[340171795,1728755443524,-993.08000001,0.0001088,2]
[340171810,1728755446036,-335.23446328,0.0001088,2]
[340171811,1728755446047,-1078.57073008,0.0001088,2]
[340171812,1728755446153,-272.38683125,0.0001088,2]
[340171813,1728755446320,-346844.38842668,0.0001088,2]
[340171814,1728755446330,-1622.1573,0.00010896,2]
[340171815,1728755446339,-479.2679,0.000109,2]
[340171816,1728755446348,-19730.99991858,0.000109,2]
[340171818,1728755486585,250.0,0.00010207,2]
[340171819,1728755748154,263.32,0.00010235,2]
[340171820,1728755815846,550.0,0.0001,2]
[340171821,1728755831471,627.18,8.27e-05,2]
[340171822,1728756029183,250.0,0.00010146,2]
[340171823,1728756170964,150.0,0.00010225,2]
[340171824,1728756183172,-150.0,0.00010235,2]
[340171825,1728756239709,150.0,0.0001023,2]
[340171826,1728756258698,500.0,8.782e-05,2]
[340171827,1728756284607,150.0,0.0001023,2]
[340171828,1728756347968,629.11,8.219e-05,2]
[340171829,1728756399317,167.31,0.00010076,2]
[340171843,1728756467044,1000.0,0.0001006,2]
[340171844,1728756584681,250.0,0.00010063,2]
[340171845,1728756632284,-150.0,0.00010246,2]
[340171846,1728756632293,-629.11,0.00010483,2]
[340171847,1728756632303,-1641.98900074,0.0001079,2]
[340171848,1728756632456,-675.29840181,0.0001079,2]
[340171866,1728756638703,-4324.97699745,0.0001079,2]
[340171867,1728756638713,-1202.0218,0.000108,2]
[340171868,1728756638722,-24572.50120255,0.0001089,2]
[340171869,1728756638734,-12048.73127999,0.0001089,2]
[340171870,1728756638761,-2000.0,0.0001089,2]
[340171878,1728756640590,-3857.2303866,0.0001089,2]
[340171879,1728756640602,-497.91075192,0.0001089,2]
[340171880,1728756640613,-6560.1652835,0.0001089,2]
[340171979,1728756643656,-150.0,0.00010246,2]
[340171980,1728756643673,-2350.0,0.0001089,2]
[340171985,1728756646505,-4887.77833931,0.0001089,2]
[340171991,1728756861449,596.95,8.219e-05,2]
[340171992,1728756954487,200.0,0.00010052,2]
[340171997,1728757214165,250.0,0.00010064,2]
[340171998,1728757381774,582.07,8.219e-05,2]
[340171999,1728757494487,840.0,0.00010068,2]
[340172000,1728757541659,210.65,0.00010052,2]
[340172001,1728757542197,150.0,0.00010203,2]
[340172002,1728757553910,150.0,0.00010205,2]
[340172003,1728757553949,6627.58406576,0.0001,2]
[340172004,1728757565741,150.0,0.00010207,2]
[340172005,1728757577761,150.0,0.0001021,2]
[340172029,1728757710430,150.0,0.00010167,2]
[340172032,1728757722197,150.0,0.00010169,2]
[340172033,1728757734210,150.0,0.00010171,2]
[340172145,1728757759892,250.0,9.905e-05,2]
[340172322,1728757831447,-582.07,0.00010481,2]
[340172323,1728757831457,-800.0,0.00010618,2]
[340172325,1728757831467,-150.0,0.00010725,2]
[340172327,1728757831476,-150.0,0.00010732,2]
[340172329,1728757831486,-150.0,0.00010739,2]
[340172330,1728757831494,-150.0,0.00010745,2]
[340172331,1728757831503,-150.0,0.00010752,2]
[340172332,1728757831513,-150.0,0.00010755,2]
[340172333,1728757831522,-150.0,0.00010758,2]
[340172334,1728757831531,-150.0,0.00010765,2]
[340172335,1728757831540,-3435.38,0.00010765,2]
[340172336,1728757831549,-174.24934109,0.00010768,2]
[340172337,1728757831559,-150.0,0.00010771,2]
[340172338,1728757831567,-150.0,0.00010785,2]
[340172339,1728757831576,-150.0,0.00010785,2]
[340172340,1728757831585,-150.0,0.00010797,2]
[340172341,1728757831594,-150.0,0.00010805,2]
[340172342,1728757831603,-150.0,0.00010818,2]
[340172343,1728757831612,-150.0,0.00010823,2]
[340172344,1728757831621,-150.0,0.00010827,2]
[340172345,1728757831630,-150.0,0.00010829,2]
[340172346,1728757831641,-150.0,0.00010832,2]
[340172347,1728757831650,-150.0,0.00010842,2]
[340172348,1728757831659,-150.0,0.0001086,2]
[340172349,1728757831668,-150.0,0.00010862,2]
[340172350,1728757831677,-150.0,0.00010863,2]
[340172351,1728757831686,-150.0,0.00010871,2]
[340172352,1728757831695,-150.0,0.00010871,2]
[340172353,1728757831704,-300.0,0.00010871,2]
[340172354,1728757831713,-150.0,0.00010876,2]
[340172355,1728757831722,-150.0,0.00010877,2]
[340172356,1728757831731,-150.0,0.00010882,2]
[340172357,1728757831740,-150.0,0.00010887,2]
[340172358,1728757831749,-2625.60318665,0.0001089,2]
[340172359,1728757831764,-1326.47409564,0.0001089,2]
[340172360,1728757831775,-1500.3044245,0.0001089,2]
[340172361,1728757831785,-361.36554768,0.0001089,2]
[340172362,1728757831796,-851.45896926,0.0001089,2]
[340172363,1728757831807,-4064.67310528,0.0001089,2]
[340172364,1728757831830,-1263.68242,0.0001089,2]
[340172365,1728757831841,-7496.7048344,0.0001089,2]
[340172367,1728757831860,-47513.94352387,0.0001089,2]
[340172369,1728757831870,-34268.23783094,0.0001089,2]
[340172371,1728757831881,-1010.61969934,0.0001089,2]
[340172373,1728757831898,-591.45,0.0001089,2]
[340172419,1728757837558,-150.0,0.00010359,2]
[340172420,1728757837567,-369.07829482,0.0001089,2]
[340172421,1728757837579,-2837.4908233,0.0001089,2]
[340172422,1728757837590,-14391.21398107,0.0001089,2]
[340172423,1728757837601,-757.25070126,0.0001089,2]
[340172424,1728757837649,-15282.06696199,0.0001089,2]
[340172425,1728757837659,-2000.0,0.0001089,2]
[340172426,1728757837669,-200.0,0.0001089,2]
[340172427,1728757837679,-2000.0,0.0001089,2]
[340172428,1728757837689,-200.0,0.0001089,2]
[340172429,1728757837698,-150.0,0.00010893,2]
[340172430,1728757837707,-150.0,0.00010896,2]
[340172431,1728757837717,-150.0,0.00010897,2]
[340172432,1728757837726,-150.0,0.00010897,2]
[340172433,1728757837736,-278.80988267,0.00010899,2]
[340172434,1728757837746,-278.80988267,0.00010899,2]
[340172435,1728757837755,-278.80988267,0.00010899,2]
[340172436,1728757837764,-278.80988267,0.00010899,2]
[340172437,1728757837774,-2000.0,0.000109,2]
[340172438,1728757837783,-200.0,0.000109,2]
[340172439,1728757837793,-2000.0,0.000109,2]
[340172440,1728757837802,-200.0,0.000109,2]
[340172441,1728757837812,-174.69066663,0.000109,2]
[340172442,1728757837821,-195.295982,0.000109,2]
[340172443,1728757837830,-150.0,0.00010907,2]
[340172444,1728757837840,-150.0,0.00010908,2]
[340172445,1728757837849,-150.0,0.00010911,2]
[340172446,1728757837859,-150.0,0.00010915,2]
[340172447,1728757837868,-150.0,0.00010916,2]
[340172448,1728757837878,-150.0,0.00010919,2]
[340172449,1728757837887,-150.0,0.00010921,2]
[340172450,1728757837898,-150.0,0.00010929,2]
[340172451,1728757837907,-150.0,0.00010933,2]
[340172452,1728757837916,-150.0,0.00010937,2]
[340172453,1728757837926,-150.0,0.00010939,2]
[340172454,1728757837935,-150.0,0.00010941,2]
[340172455,1728757837944,-159.05,0.00010959,2]
[340172456,1728757837954,-160.05,0.00010959,2]
[340172457,1728757837963,-185.98,0.00010959,2]
[340172458,1728757837973,-292.24,0.00010959,2]
[340172459,1728757837983,-250.0,0.00010959,2]
[340172460,1728757837993,-231.64,0.00010959,2]
[340172461,1728757838002,-729.62,0.00010959,2]
[340172462,1728757838011,-150.0,0.0001096,2]
[340172463,1728757838021,-150.0,0.00010961,2]
[340172464,1728757838030,-168.411,0.00010964,2]
[340172465,1728757838040,-150.0,0.00010965,2]
[340172466,1728757838050,-150.0,0.00010965,2]